[Event "*** Titled Tuesday Blitz"]
[Site "Chess.com"]
[Date "2021.03.02"]
[Round "6"]
[White "elextranjero00"]
[Black "verdest"]
[Result "0-1"]
[WhiteElo "2641"]
[BlackElo "2497"]
[TimeControl "180+1"]
[EndTime "11:06:30 PST"]
[Termination "verdest won on time"]

1. e4 {[%clk 0:03:00.9]} 1... c5 {[%clk 0:02:59.3]} 2. Nf3 {[%clk 0:03:00.8]}
2... Nc6 {[%clk 0:02:58.7]} 3. Bb5 {[%clk 0:02:55.4]} 3... Nf6 {[%clk 0:02:57]}
4. Nc3 {[%clk 0:02:53.7]} 4... g6 {[%clk 0:02:56.3]} 5. O-O {[%clk 0:02:50.1]}
5... Bg7 {[%clk 0:02:55.7]} 6. Bxc6 {[%clk 0:02:46.3]} 6... dxc6 {[%clk
0:02:55.5]} 7. h3 {[%clk 0:02:41.6]} 7... O-O {[%clk 0:02:54.9]} 8. d3 {[%clk
0:02:41.8]} 8... Nd7 {[%clk 0:02:48]} 9. Be3 {[%clk 0:02:32.9]} 9... e5 {[%clk
0:02:44.8]} 10. Qd2 {[%clk 0:02:28.5]} 10... Qe7 {[%clk 0:02:43.8]} 11. Bh6
{[%clk 0:02:25.8]} 11... Rd8 {[%clk 0:02:39.7]} 12. Bxg7 {[%clk 0:02:23.1]}
12... Kxg7 {[%clk 0:02:40.6]} 13. Nh2 {[%clk 0:02:20.9]} 13... Nf8 {[%clk
0:02:39.5]} 14. f4 {[%clk 0:02:15.4]} 14... exf4 {[%clk 0:02:38.4]} 15. Qxf4
{[%clk 0:02:15.2]} 15... Ne6 {[%clk 0:02:38.1]} 16. Qf2 {[%clk 0:02:15.3]} 16...
Nd4 {[%clk 0:02:32.4]} 17. b3 {[%clk 0:02:11.9]} 17... Be6 {[%clk 0:02:29.4]}
18. Rae1 {[%clk 0:02:11.2]} 18... b5 {[%clk 0:02:16.5]} 19. Nf3 {[%clk
0:02:07.1]} 19... a5 {[%clk 0:01:54.9]} 20. e5 {[%clk 0:01:59.2]} 20... Bd5
{[%clk 0:01:44.8]} 21. Nxd4 {[%clk 0:01:52.4]} 21... cxd4 {[%clk 0:01:43.4]} 22.
Ne2 {[%clk 0:01:26]} 22... c5 {[%clk 0:01:38]} 23. Nf4 {[%clk 0:01:25.4]} 23...
Be6 {[%clk 0:01:34.6]} 24. Qg3 {[%clk 0:01:20.6]} 24... Kh8 {[%clk 0:01:32.6]}
25. Nxe6 {[%clk 0:01:14.3]} 25... fxe6 {[%clk 0:01:27.6]} 26. Rf6 {[%clk
0:01:12.4]} 26... a4 {[%clk 0:01:23.4]} 27. Ref1 {[%clk 0:01:11.9]} 27... axb3
{[%clk 0:01:20.4]} 28. Rf7 {[%clk 0:00:35.7]} 28... Rf8 {[%clk 0:01:00.2]} 29.
Rxe7 {[%clk 0:00:25.1]} 29... Rxf1+ {[%clk 0:00:59.7]} 30. Kxf1 {[%clk 0:00:26]}
30... b2 {[%clk 0:00:52.3]} 31. Qh4 {[%clk 0:00:06.6]} 31... b1=Q+ {[%clk
0:00:51.4]} 32. Kf2 {[%clk 0:00:07]} 32... Rf8+ {[%clk 0:00:50.8]} 0-1

[Event "*** Titled Tuesday Blitz"]
[Site "Chess.com"]
[Date "2021.03.02"]
[Round "6"]
[White "GOGIEFF"]
[Black "olksuna"]
[Result "0-1"]
[WhiteElo "2878"]
[BlackElo "2688"]
[TimeControl "180+1"]
[EndTime "11:06:32 PST"]
[Termination "olksuna won by resignation"]

1. d4 {[%clk 0:03:00.9]} 1... Nf6 {[%clk 0:02:59.8]} 2. c4 {[%clk 0:03:01]} 2...
e6 {[%clk 0:03:00.2]} 3. Nc3 {[%clk 0:03:01]} 3... Bb4 {[%clk 0:03:00.1]} 4. e3
{[%clk 0:03:01.2]} 4... O-O {[%clk 0:02:57.3]} 5. Bd3 {[%clk 0:03:01.2]} 5... d5
{[%clk 0:02:54.9]} 6. Nf3 {[%clk 0:03:01.3]} 6... c5 {[%clk 0:02:54.1]} 7. O-O
{[%clk 0:03:01.1]} 7... Nc6 {[%clk 0:02:54.1]} 8. a3 {[%clk 0:03:00.7]} 8...
Bxc3 {[%clk 0:02:48.3]} 9. bxc3 {[%clk 0:03:01.6]} 9... dxc4 {[%clk 0:02:48.6]}
10. Bxc4 {[%clk 0:03:02.4]} 10... Qc7 {[%clk 0:02:49.2]} 11. Bb2 {[%clk
0:03:01.9]} 11... b6 {[%clk 0:02:47.3]} 12. Bd3 {[%clk 0:02:58.5]} 12... e5
{[%clk 0:02:45.5]} 13. e4 {[%clk 0:02:49.8]} 13... Bg4 {[%clk 0:02:38.1]} 14. d5
{[%clk 0:02:45]} 14... Na5 {[%clk 0:02:28.3]} 15. c4 {[%clk 0:02:42.1]} 15...
Rae8 {[%clk 0:02:21.1]} 16. h3 {[%clk 0:02:32.3]} 16... Bxf3 {[%clk 0:02:16.6]}
17. Qxf3 {[%clk 0:02:32.3]} 17... Nb3 {[%clk 0:02:14]} 18. Rae1 {[%clk
0:02:17.3]} 18... Nd2 {[%clk 0:02:07.8]} 19. Qe2 {[%clk 0:02:12]} 19... Nxf1
{[%clk 0:02:07.9]} 20. Rxf1 {[%clk 0:02:12.9]} 20... Re7 {[%clk 0:02:04.2]} 21.
Bc3 {[%clk 0:02:07.3]} 21... Ne8 {[%clk 0:02:02.7]} 22. f4 {[%clk 0:01:55.3]}
22... f6 {[%clk 0:01:57.2]} 23. f5 {[%clk 0:01:53.9]} 23... Nd6 {[%clk
0:01:54.1]} 24. g4 {[%clk 0:01:54]} 24... Kf7 {[%clk 0:01:52.8]} 25. a4 {[%clk
0:01:53.6]} 25... Ke8 {[%clk 0:01:50.9]} 26. h4 {[%clk 0:01:53]} 26... Kd7
{[%clk 0:01:48.8]} 27. g5 {[%clk 0:01:51.9]} 27... h6 {[%clk 0:01:38.1]} 28.
gxh6 {[%clk 0:01:45.4]} 28... gxh6 {[%clk 0:01:38]} 29. Kh2 {[%clk 0:01:45.7]}
29... Rg8 {[%clk 0:01:33.7]} 30. Bd2 {[%clk 0:01:43.7]} 30... Reg7 {[%clk
0:01:28.8]} 31. Bxh6 {[%clk 0:01:16.6]} 31... Rh7 {[%clk 0:01:28.3]} 32. Qe3
{[%clk 0:01:07.4]} 32... Nf7 {[%clk 0:01:23.8]} 33. Rg1 {[%clk 0:01:07.2]} 33...
Nxh6 {[%clk 0:01:08.6]} 34. Kh3 {[%clk 0:01:02.1]} 34... Rxg1 {[%clk 0:00:52.3]}
35. Qxg1 {[%clk 0:01:03]} 35... Qd8 {[%clk 0:00:50.1]} 36. Be2 {[%clk 0:01:03]}
36... Qg8 {[%clk 0:00:46.7]} 37. Qb1 {[%clk 0:01:02.6]} 37... Rg7 {[%clk
0:00:44]} 38. Qb3 {[%clk 0:00:53.6]} 38... Ng4 {[%clk 0:00:42.4]} 39. Kg3 {[%clk
0:00:47.1]} 39... Ne3+ {[%clk 0:00:38.5]} 40. Kf2 {[%clk 0:00:47.4]} 40... Rg2+
{[%clk 0:00:35.6]} 41. Ke1 {[%clk 0:00:39.9]} 41... Qg3+ {[%clk 0:00:34.7]} 42.
Kd2 {[%clk 0:00:40.2]} 42... Nf1+ {[%clk 0:00:33.7]} 0-1

[Event "*** Titled Tuesday Blitz"]
[Site "Chess.com"]
[Date "2021.03.02"]
[Round "6"]
[White "manitodeplomo"]
[Black "grunbergmihai"]
[Result "0-1"]
[WhiteElo "2597"]
[BlackElo "2486"]
[TimeControl "180+1"]
[EndTime "11:06:32 PST"]
[Termination "grunbergmihai won by resignation"]

1. d4 {[%clk 0:03:00.9]} 1... f5 {[%clk 0:02:59.6]} 2. g3 {[%clk 0:03:00.5]}
2... Nf6 {[%clk 0:02:59.6]} 3. Bg2 {[%clk 0:03:01.1]} 3... g6 {[%clk 0:02:59.9]}
4. Nf3 {[%clk 0:03:01.2]} 4... Bg7 {[%clk 0:03:00.1]} 5. O-O {[%clk 0:03:02.1]}
5... O-O {[%clk 0:03:00.8]} 6. c4 {[%clk 0:03:02.6]} 6... c6 {[%clk 0:03:01.1]}
7. b4 {[%clk 0:03:02.9]} 7... Ne4 {[%clk 0:03:00.3]} 8. a4 {[%clk 0:03:02.6]}
8... a5 {[%clk 0:02:59.9]} 9. b5 {[%clk 0:03:02.7]} 9... d5 {[%clk 0:03:00]} 10.
e3 {[%clk 0:02:54.4]} 10... dxc4 {[%clk 0:02:57.9]} 11. Na3 {[%clk 0:02:52.8]}
11... Be6 {[%clk 0:02:53.7]} 12. Qc2 {[%clk 0:02:49]} 12... cxb5 {[%clk
0:02:49.4]} 13. axb5 {[%clk 0:02:44.2]} 13... Nd7 {[%clk 0:02:48.9]} 14. Nd2
{[%clk 0:02:40.4]} 14... Nxd2 {[%clk 0:02:39.4]} 15. Bxd2 {[%clk 0:02:40.1]}
15... Qc7 {[%clk 0:02:36.6]} 16. Rac1 {[%clk 0:02:31.4]} 16... Nb6 {[%clk
0:02:35.4]} 17. Qc3 {[%clk 0:02:19.7]} 17... Rfc8 {[%clk 0:02:30.3]} 18. Rfd1
{[%clk 0:02:14.8]} 18... Nd5 {[%clk 0:02:28.8]} 19. Qa1 {[%clk 0:02:13.7]} 19...
Nb4 {[%clk 0:02:25.1]} 20. Bc3 {[%clk 0:02:05.8]} 20... Bd5 {[%clk 0:02:12.4]}
21. Be1 {[%clk 0:01:37]} 21... Qd7 {[%clk 0:02:04]} 22. Bf1 {[%clk 0:00:48.6]}
22... Qe6 {[%clk 0:01:47.2]} 23. Qb1 {[%clk 0:00:42.2]} 23... b6 {[%clk
0:01:38.1]} 24. Bg2 {[%clk 0:00:18]} 24... Nd3 {[%clk 0:01:31.4]} 25. Bxd5
{[%clk 0:00:16.3]} 25... Qxd5 {[%clk 0:01:30.4]} 26. Rc3 {[%clk 0:00:14.8]}
26... Nxe1 {[%clk 0:01:22.2]} 27. Rxe1 {[%clk 0:00:14.2]} 27... e5 {[%clk
0:01:19.8]} 28. Rec1 {[%clk 0:00:13.4]} 28... exd4 {[%clk 0:01:18.6]} 29. Rxc4
{[%clk 0:00:12.1]} 29... Rxc4 {[%clk 0:01:15.7]} 30. Nxc4 {[%clk 0:00:13]} 30...
dxe3 {[%clk 0:01:08.2]} 31. Nxb6 {[%clk 0:00:12.8]} 31... exf2+ {[%clk
0:01:07.9]} 32. Kf1 {[%clk 0:00:11.9]} 32... Qh1+ {[%clk 0:01:06.8]} 33. Kxf2
{[%clk 0:00:12]} 33... Bd4+ {[%clk 0:01:03.9]} 34. Ke2 {[%clk 0:00:07]} 34...
Qxh2+ {[%clk 0:01:00.6]} 35. Kd3 {[%clk 0:00:06.9]} 35... Bxb6 {[%clk
0:00:55.9]} 36. Qa2+ {[%clk 0:00:07.8]} 36... Qxa2 {[%clk 0:00:52]} 0-1

[Event "*** Titled Tuesday Blitz"]
[Site "Chess.com"]
[Date "2021.03.02"]
[Round "6"]
[White "Mikhail_Golubev"]
[Black "GMaka"]
[Result "1-0"]
[WhiteElo "2594"]
[BlackElo "2445"]
[TimeControl "180+1"]
[EndTime "11:06:35 PST"]
[Termination "Mikhail_Golubev won by resignation"]

1. e4 {[%clk 0:03:00.9]} 1... c6 {[%clk 0:02:59.9]} 2. d4 {[%clk 0:03:00.5]}
2... d5 {[%clk 0:03:00.8]} 3. Nc3 {[%clk 0:03:00.9]} 3... dxe4 {[%clk
0:03:00.7]} 4. Nxe4 {[%clk 0:03:01.8]} 4... Bf5 {[%clk 0:03:00.4]} 5. Ng3 {[%clk
0:03:01.7]} 5... Bg6 {[%clk 0:03:01]} 6. c3 {[%clk 0:03:00.6]} 6... e6 {[%clk
0:02:59.7]} 7. Nh3 {[%clk 0:02:59.9]} 7... Bd6 {[%clk 0:02:58.9]} 8. Nf4 {[%clk
0:02:57.5]} 8... Nf6 {[%clk 0:02:58.5]} 9. h4 {[%clk 0:02:55.4]} 9... Bxf4
{[%clk 0:02:57.7]} 10. Bxf4 {[%clk 0:02:54.6]} 10... h6 {[%clk 0:02:58]} 11. h5
{[%clk 0:02:54.4]} 11... Bh7 {[%clk 0:02:57.9]} 12. Qb3 {[%clk 0:02:49.4]} 12...
Qb6 {[%clk 0:02:36.1]} 13. Qa3 {[%clk 0:02:41.2]} 13... Nbd7 {[%clk 0:02:17.5]}
14. Bd6 {[%clk 0:02:21.8]} 14... a5 {[%clk 0:01:37]} 15. Be2 {[%clk 0:02:19.2]}
15... a4 {[%clk 0:01:36.4]} 16. O-O {[%clk 0:02:15]} 16... Ra5 {[%clk
0:01:30.2]} 17. Rad1 {[%clk 0:02:08.5]} 17... Rd5 {[%clk 0:01:13]} 18. Bb4
{[%clk 0:01:46.7]} 18... Qa7 {[%clk 0:00:48.3]} 19. c4 {[%clk 0:01:24.9]} 19...
Rxd4 {[%clk 0:00:45.3]} 20. Qe3 {[%clk 0:01:20.7]} 20... c5 {[%clk 0:00:33.4]}
21. Bxc5 {[%clk 0:01:17.1]} 21... Qxc5 {[%clk 0:00:34.3]} 22. Qxd4 {[%clk
0:01:16.2]} 22... O-O {[%clk 0:00:34.8]} 23. Qxc5 {[%clk 0:01:12.6]} 23... Nxc5
{[%clk 0:00:35.7]} 24. Rd4 {[%clk 0:01:09.8]} 24... Nfe4 {[%clk 0:00:17.9]} 25.
Nxe4 {[%clk 0:01:08]} 25... Bxe4 {[%clk 0:00:18.8]} 26. Rfd1 {[%clk 0:01:05.5]}
26... Bc6 {[%clk 0:00:17.2]} 27. Rd8 {[%clk 0:01:05.2]} 27... f6 {[%clk
0:00:17.2]} 28. Rxf8+ {[%clk 0:01:04.2]} 28... Kxf8 {[%clk 0:00:18.1]} 29. f3
{[%clk 0:01:02.6]} 29... e5 {[%clk 0:00:17.3]} 30. Kf2 {[%clk 0:01:02.5]} 30...
Ke7 {[%clk 0:00:17]} 31. Ke3 {[%clk 0:01:02.6]} 31... Ne6 {[%clk 0:00:17.6]} 32.
g3 {[%clk 0:01:01]} 32... Be8 {[%clk 0:00:16]} 33. f4 {[%clk 0:00:59.8]} 33...
Nc5 {[%clk 0:00:10.8]} 34. fxe5 {[%clk 0:00:58.2]} 34... fxe5 {[%clk 0:00:11.7]}
35. Rd5 {[%clk 0:00:56.7]} 35... Nd7 {[%clk 0:00:11.2]} 36. Bg4 {[%clk
0:00:52.8]} 36... Nf6 {[%clk 0:00:10.5]} 37. Rxe5+ {[%clk 0:00:51.3]} 37... Kd6
{[%clk 0:00:10.6]} 38. Re6+ {[%clk 0:00:50.5]} 38... Kd7 {[%clk 0:00:10.7]} 1-0

[Event "*** Titled Tuesday Blitz"]
[Site "Chess.com"]
[Date "2021.03.02"]
[Round "6"]
[White "Buryshin_Vasyl"]
[Black "Klavdia_Nik"]
[Result "0-1"]
[WhiteElo "2180"]
[BlackElo "2065"]
[TimeControl "180+1"]
[EndTime "11:06:35 PST"]
[Termination "Klavdia_Nik won by checkmate"]

1. b3 {[%clk 0:02:49.3]} 1... e5 {[%clk 0:02:52]} 2. Bb2 {[%clk 0:02:49.6]} 2...
Nc6 {[%clk 0:02:49.1]} 3. e3 {[%clk 0:02:50]} 3... Nf6 {[%clk 0:02:48.9]} 4. Bb5
{[%clk 0:02:49.2]} 4... d6 {[%clk 0:02:45.9]} 5. d4 {[%clk 0:02:45.7]} 5... exd4
{[%clk 0:02:38.4]} 6. Qxd4 {[%clk 0:02:46.6]} 6... Bd7 {[%clk 0:02:36.5]} 7.
Bxc6 {[%clk 0:02:45]} 7... Bxc6 {[%clk 0:02:34.8]} 8. Nf3 {[%clk 0:02:42.6]}
8... Be7 {[%clk 0:02:27.9]} 9. Nbd2 {[%clk 0:02:39.9]} 9... Qd7 {[%clk
0:02:18.2]} 10. O-O {[%clk 0:02:37.5]} 10... O-O {[%clk 0:02:12.3]} 11. Rad1
{[%clk 0:02:19.2]} 11... b6 {[%clk 0:01:46.4]} 12. h3 {[%clk 0:02:06.7]} 12...
Bb7 {[%clk 0:01:45]} 13. g4 {[%clk 0:01:31.7]} 13... c5 {[%clk 0:01:44.4]} 14.
Qc3 {[%clk 0:01:26.2]} 14... Ne8 {[%clk 0:01:26.1]} 15. Kh2 {[%clk 0:01:23.9]}
15... Bf6 {[%clk 0:01:24.3]} 16. Qd3 {[%clk 0:00:56.7]} 16... Bxb2 {[%clk
0:01:22]} 17. Ng5 {[%clk 0:00:53.5]} 17... g6 {[%clk 0:01:17.7]} 18. c3 {[%clk
0:00:51.5]} 18... Qe7 {[%clk 0:01:13.1]} 19. f4 {[%clk 0:00:46.7]} 19... h6
{[%clk 0:01:01.3]} 20. Ndf3 {[%clk 0:00:17.2]} 20... hxg5 {[%clk 0:00:54.6]} 21.
Nxg5 {[%clk 0:00:18.1]} 21... Nf6 {[%clk 0:00:35.1]} 22. f5 {[%clk 0:00:15.3]}
22... Ne4 {[%clk 0:00:30.9]} 23. fxg6 {[%clk 0:00:13.8]} 23... Qe5+ {[%clk
0:00:26]} 24. Kg2 {[%clk 0:00:07.5]} 24... Nxg5+ {[%clk 0:00:25.8]} 25. Kg1
{[%clk 0:00:04.6]} 25... Nxh3# {[%clk 0:00:23.4]} 0-1

[Event "*** Titled Tuesday Blitz"]
[Site "Chess.com"]
[Date "2021.03.02"]
[Round "6"]
[White "skoularikii"]
[Black "Faqade"]
[Result "1-0"]
[WhiteElo "2537"]
[BlackElo "2686"]
[TimeControl "180+1"]
[EndTime "11:06:37 PST"]
[Termination "skoularikii won by resignation"]

1. e4 {[%clk 0:03:00.9]} 1... c5 {[%clk 0:02:59.9]} 2. Nf3 {[%clk 0:03:00.9]}
2... Nc6 {[%clk 0:03:00.5]} 3. Nc3 {[%clk 0:03:01.2]} 3... Nf6 {[%clk
0:02:59.8]} 4. Bb5 {[%clk 0:03:00.2]} 4... Qc7 {[%clk 0:03:00.2]} 5. O-O {[%clk
0:02:51.4]} 5... Nd4 {[%clk 0:03:00]} 6. Re1 {[%clk 0:02:48.8]} 6... Nxb5 {[%clk
0:02:46.2]} 7. Nxb5 {[%clk 0:02:48.8]} 7... Qb6 {[%clk 0:02:46.4]} 8. Nc3 {[%clk
0:02:48.3]} 8... d6 {[%clk 0:02:44.9]} 9. e5 {[%clk 0:02:40.9]} 9... dxe5 {[%clk
0:02:42.1]} 10. Nxe5 {[%clk 0:02:41.2]} 10... g6 {[%clk 0:02:31.5]} 11. d3
{[%clk 0:02:41.3]} 11... Bg7 {[%clk 0:02:29.5]} 12. h3 {[%clk 0:02:40.2]} 12...
O-O {[%clk 0:02:28.2]} 13. Rb1 {[%clk 0:02:33.6]} 13... Be6 {[%clk 0:02:26.9]}
14. Bf4 {[%clk 0:02:33]} 14... Rfd8 {[%clk 0:02:24.6]} 15. Qe2 {[%clk
0:02:28.3]} 15... Qa6 {[%clk 0:02:17.5]} 16. b3 {[%clk 0:02:25.8]} 16... Nd5
{[%clk 0:02:10.8]} 17. Nxd5 {[%clk 0:02:24.6]} 17... Rxd5 {[%clk 0:02:11.7]} 18.
c4 {[%clk 0:02:16.9]} 18... Rdd8 {[%clk 0:02:10.4]} 19. Nf3 {[%clk 0:02:15]}
19... Bc3 {[%clk 0:01:41.6]} 20. Red1 {[%clk 0:02:07.1]} 20... Bf6 {[%clk
0:01:34.1]} 21. g4 {[%clk 0:02:03.5]} 21... Rd7 {[%clk 0:01:29]} 22. Ne5 {[%clk
0:01:26.4]} 22... Rd4 {[%clk 0:01:25.6]} 23. Bg3 {[%clk 0:01:17.5]} 23... Rad8
{[%clk 0:01:25.7]} 24. Qf3 {[%clk 0:01:06.8]} 24... Qxa2 {[%clk 0:01:03.8]} 25.
Qxb7 {[%clk 0:00:57]} 25... Bxe5 {[%clk 0:00:49]} 26. Bxe5 {[%clk 0:00:56.5]}
26... Rxd3 {[%clk 0:00:49.5]} 27. Qxe7 {[%clk 0:00:28.7]} 27... Qe2 {[%clk
0:00:07.2]} 28. Qxd8+ {[%clk 0:00:26.7]} 1-0

[Event "*** Titled Tuesday Blitz"]
[Site "Chess.com"]
[Date "2021.03.02"]
[Round "6"]
[White "Galiev_Azat"]
[Black "felipelobo"]
[Result "1-0"]
[WhiteElo "2391"]
[BlackElo "2159"]
[TimeControl "180+1"]
[EndTime "11:06:37 PST"]
[Termination "Galiev_Azat won on time"]

1. d4 {[%clk 0:03:00.9]} 1... Nf6 {[%clk 0:02:58.9]} 2. Bf4 {[%clk 0:03:00.4]}
2... c5 {[%clk 0:02:53.8]} 3. e3 {[%clk 0:03:00]} 3... d5 {[%clk 0:02:46.7]} 4.
c3 {[%clk 0:02:58.8]} 4... Qb6 {[%clk 0:02:46.5]} 5. Qb3 {[%clk 0:02:57.9]} 5...
c4 {[%clk 0:02:40.7]} 6. Qc2 {[%clk 0:02:57]} 6... g6 {[%clk 0:02:39.5]} 7. Nd2
{[%clk 0:02:44.7]} 7... Bf5 {[%clk 0:02:36.2]} 8. Qc1 {[%clk 0:02:43.2]} 8...
Bg7 {[%clk 0:02:34.4]} 9. Ngf3 {[%clk 0:02:43.3]} 9... Nc6 {[%clk 0:02:32.3]}
10. Be2 {[%clk 0:02:42.1]} 10... O-O {[%clk 0:02:30.5]} 11. O-O {[%clk
0:02:41.5]} 11... h6 {[%clk 0:02:14.1]} 12. b3 {[%clk 0:02:39.8]} 12... cxb3
{[%clk 0:02:07.4]} 13. axb3 {[%clk 0:02:38.8]} 13... Rfc8 {[%clk 0:02:06.7]} 14.
Qb2 {[%clk 0:02:33.1]} 14... Nh5 {[%clk 0:02:04.7]} 15. Bg3 {[%clk 0:02:28.7]}
15... Nxg3 {[%clk 0:02:04.2]} 16. hxg3 {[%clk 0:02:29.6]} 16... e5 {[%clk
0:01:53.1]} 17. Rfc1 {[%clk 0:02:23.7]} 17... a5 {[%clk 0:01:40.3]} 18. Ra4
{[%clk 0:02:07.6]} 18... exd4 {[%clk 0:01:28]} 19. exd4 {[%clk 0:02:05.7]} 19...
Re8 {[%clk 0:01:02.1]} 20. Nf1 {[%clk 0:01:59.4]} 20... Nb4 {[%clk 0:00:47.9]}
21. cxb4 {[%clk 0:01:53.6]} 21... Rac8 {[%clk 0:00:40.7]} 22. bxa5 {[%clk
0:01:49.9]} 22... Rxc1 {[%clk 0:00:40.2]} 23. axb6 {[%clk 0:01:41.3]} 23... Rc2
{[%clk 0:00:39.9]} 24. Qa1 {[%clk 0:01:23.5]} 24... Rexe2 {[%clk 0:00:38.9]} 25.
Ne3 {[%clk 0:01:19.1]} 25... Rb2 {[%clk 0:00:30.7]} 26. Nxf5 {[%clk 0:01:14.5]}
26... gxf5 {[%clk 0:00:31.6]} 27. Ra8+ {[%clk 0:01:12.3]} 27... Kh7 {[%clk
0:00:31.3]} 28. Nh4 {[%clk 0:01:06.5]} 28... Rxf2 {[%clk 0:00:28.8]} 29. Qd1
{[%clk 0:00:52.9]} 29... Rbd2 {[%clk 0:00:24.7]} 30. Qh5 {[%clk 0:00:52.1]}
30... Rxg2+ {[%clk 0:00:12.5]} 31. Nxg2 {[%clk 0:00:51.1]} 31... Bxd4+ {[%clk
0:00:13.4]} 32. Kh2 {[%clk 0:00:50.9]} 32... Rxg2+ {[%clk 0:00:11.3]} 33. Kxg2
{[%clk 0:00:50.5]} 1-0

[Event "*** Titled Tuesday Blitz"]
[Site "Chess.com"]
[Date "2021.03.02"]
[Round "6"]
[White "Orest_Vovk"]
[Black "mikolka1985"]
[Result "0-1"]
[WhiteElo "2501"]
[BlackElo "2644"]
[TimeControl "180+1"]
[EndTime "11:06:39 PST"]
[Termination "mikolka1985 won by checkmate"]

1. d4 {[%clk 0:03:00.9]} 1... Nf6 {[%clk 0:02:58.9]} 2. Nf3 {[%clk 0:02:59.3]}
2... b6 {[%clk 0:02:54.5]} 3. Bg5 {[%clk 0:02:59]} 3... g6 {[%clk 0:02:52.5]} 4.
Nbd2 {[%clk 0:02:57.2]} 4... Bg7 {[%clk 0:02:50.8]} 5. e4 {[%clk 0:02:55.3]}
5... Bb7 {[%clk 0:02:47.5]} 6. Bd3 {[%clk 0:02:55.2]} 6... O-O {[%clk
0:02:46.6]} 7. Qe2 {[%clk 0:02:55.3]} 7... c5 {[%clk 0:02:46.2]} 8. c3 {[%clk
0:02:54.8]} 8... d6 {[%clk 0:02:44.8]} 9. O-O {[%clk 0:02:53.6]} 9... h6 {[%clk
0:02:43.5]} 10. Bh4 {[%clk 0:02:52.1]} 10... Nh5 {[%clk 0:02:43.2]} 11. a4
{[%clk 0:02:44.1]} 11... cxd4 {[%clk 0:02:41.6]} 12. cxd4 {[%clk 0:02:43.4]}
12... Nc6 {[%clk 0:02:41.3]} 13. d5 {[%clk 0:02:41.6]} 13... Nb4 {[%clk
0:02:36.2]} 14. Bc4 {[%clk 0:02:20.8]} 14... a6 {[%clk 0:02:34.8]} 15. Rab1
{[%clk 0:02:11.8]} 15... Qd7 {[%clk 0:02:33.4]} 16. Bg3 {[%clk 0:01:55.6]} 16...
Rfc8 {[%clk 0:02:30.4]} 17. b3 {[%clk 0:01:49.7]} 17... Nxg3 {[%clk 0:02:28.9]}
18. hxg3 {[%clk 0:01:49.2]} 18... Rc5 {[%clk 0:02:27.8]} 19. Qe3 {[%clk
0:01:35.3]} 19... b5 {[%clk 0:02:23.1]} 20. axb5 {[%clk 0:01:34.7]} 20... axb5
{[%clk 0:02:21.7]} 21. Be2 {[%clk 0:01:34.5]} 21... Rc3 {[%clk 0:02:15.8]} 22.
Qf4 {[%clk 0:01:33.1]} 22... g5 {[%clk 0:02:15.7]} 23. Qf5 {[%clk 0:01:22.6]}
23... Qxf5 {[%clk 0:02:15.1]} 24. exf5 {[%clk 0:01:23.5]} 24... Ra2 {[%clk
0:01:54]} 25. Bxb5 {[%clk 0:00:36.7]} 25... g4 {[%clk 0:01:49.3]} 26. Ne4 {[%clk
0:00:36.4]} 26... gxf3 {[%clk 0:01:43.8]} 27. Nxc3 {[%clk 0:00:36.1]} 27... Bxc3
{[%clk 0:01:42.5]} 28. gxf3 {[%clk 0:00:30.8]} 28... Bxd5 {[%clk 0:01:42.1]} 29.
f4 {[%clk 0:00:28.5]} 29... Bd4 {[%clk 0:01:31.7]} 30. Rbd1 {[%clk 0:00:22.1]}
30... Bc5 {[%clk 0:01:31]} 31. Bc4 {[%clk 0:00:19.2]} 31... Bf3 {[%clk
0:01:27.9]} 32. Rde1 {[%clk 0:00:12]} 32... Kf8 {[%clk 0:01:26.1]} 33. Rc1
{[%clk 0:00:07.2]} 33... Bg4 {[%clk 0:01:25.1]} 34. f6 {[%clk 0:00:06.2]} 34...
exf6 {[%clk 0:01:24.7]} 35. Kg2 {[%clk 0:00:05.3]} 35... Bf5 {[%clk 0:01:22]}
36. Rcd1 {[%clk 0:00:04.5]} 36... d5 {[%clk 0:01:20.7]} 37. Bb5 {[%clk
0:00:01.6]} 37... Be4+ {[%clk 0:01:20.2]} 38. Kh3 {[%clk 0:00:02]} 38... Bxf2
{[%clk 0:01:18.5]} 39. Ra1 {[%clk 0:00:02]} 39... Rb2 {[%clk 0:01:16]} 40. Ra8+
{[%clk 0:00:01.8]} 40... Kg7 {[%clk 0:01:15.5]} 41. Rb8 {[%clk 0:00:02.7]} 41...
h5 {[%clk 0:01:13.2]} 42. Rc1 {[%clk 0:00:02.4]} 42... Bf5+ {[%clk 0:01:11.9]}
43. Kh4 {[%clk 0:00:02.2]} 43... Ba7 {[%clk 0:01:10.8]} 44. Be8 {[%clk
0:00:02.4]} 44... Rh2# {[%clk 0:01:09.8]} 0-1

[Event "*** Titled Tuesday Blitz"]
[Site "Chess.com"]
[Date "2021.03.02"]
[Round "6"]
[White "CrushingKings"]
[Black "politeplayer"]
[Result "1-0"]
[WhiteElo "2391"]
[BlackElo "2226"]
[TimeControl "180+1"]
[EndTime "11:06:39 PST"]
[Termination "CrushingKings won by checkmate"]

1. e4 {[%clk 0:03:00.9]} 1... e6 {[%clk 0:02:58.3]} 2. Nf3 {[%clk 0:03:00.3]}
2... c5 {[%clk 0:02:57.5]} 3. g3 {[%clk 0:02:59.1]} 3... d5 {[%clk 0:02:56.3]}
4. exd5 {[%clk 0:02:51.8]} 4... exd5 {[%clk 0:02:52.1]} 5. d4 {[%clk 0:02:51]}
5... Nc6 {[%clk 0:02:50.3]} 6. Bg2 {[%clk 0:02:49.7]} 6... Bg4 {[%clk
0:02:36.2]} 7. O-O {[%clk 0:02:46.2]} 7... Nxd4 {[%clk 0:02:30.3]} 8. Re1+
{[%clk 0:02:44.2]} 8... Ne6 {[%clk 0:02:29.8]} 9. Nc3 {[%clk 0:02:41.7]} 9...
Nf6 {[%clk 0:02:27.4]} 10. Bg5 {[%clk 0:02:35.7]} 10... d4 {[%clk 0:02:18.2]}
11. Ne4 {[%clk 0:02:28.1]} 11... Be7 {[%clk 0:02:11.8]} 12. Bxf6 {[%clk
0:02:17.8]} 12... gxf6 {[%clk 0:02:00.5]} 13. Qd3 {[%clk 0:01:44.9]} 13... Qd7
{[%clk 0:01:49]} 14. h3 {[%clk 0:01:22.4]} 14... Bh5 {[%clk 0:01:45.2]} 15. Nh4
{[%clk 0:01:15.6]} 15... Bg6 {[%clk 0:01:41.7]} 16. Qf3 {[%clk 0:00:59.7]} 16...
f5 {[%clk 0:01:34.4]} 17. Nxf5 {[%clk 0:00:58.2]} 17... h5 {[%clk 0:01:13.1]}
18. Ng7+ {[%clk 0:00:51.1]} 18... Kf8 {[%clk 0:00:57.6]} 19. Nxe6+ {[%clk
0:00:40.8]} 19... Qxe6 {[%clk 0:00:57.5]} 20. Nxc5 {[%clk 0:00:33.2]} 20... Qc8
{[%clk 0:00:57.1]} 21. Ne6+ {[%clk 0:00:27.8]} 21... Kg8 {[%clk 0:00:53.6]} 22.
Nf4 {[%clk 0:00:21.7]} 22... Bb4 {[%clk 0:00:41.3]} 23. Nxg6 {[%clk 0:00:15]}
23... fxg6 {[%clk 0:00:41.3]} 24. Qd5+ {[%clk 0:00:12.2]} 24... Kg7 {[%clk
0:00:41.6]} 25. Qxd4+ {[%clk 0:00:10.3]} 25... Kh7 {[%clk 0:00:41]} 26. Qxb4
{[%clk 0:00:11.2]} 26... Rf8 {[%clk 0:00:39.2]} 27. Re7+ {[%clk 0:00:11.5]}
27... Kh6 {[%clk 0:00:34.6]} 28. Qd2+ {[%clk 0:00:08.5]} 28... g5 {[%clk
0:00:32.6]} 29. Qd6+ {[%clk 0:00:07.7]} 29... Rf6 {[%clk 0:00:33.1]} 30. Qxf6#
{[%clk 0:00:01.6]} 1-0